[Event "Titled Tuesday Blitz February 21 Late 2023"]
[White "Martinez Alcantara, Jose Eduardo"]
[Black "Trost, Edvin"]
[WhiteFideId "3805662"]
[BlackFideId "1729519"]
[WhiteElo "2619"]
[BlackElo "2399"]
[Result "1-0"]
[Round "08"]
[TimeControl "180+2"]
[Date "2023.02.21"]
[WhiteClock "0:01:53"]
[BlackClock "0:00:30"]

1. e4 {[%clk 0:03:00]}  e5 {[%clk 0:02:30]} 2. Nf3 {[%clk 0:02:58]}  Nc6 {[%clk 0:02:31]} 3. Nc3 {[%clk 0:02:57]}  Nf6 {[%clk 0:02:30]} 4. h3 {[%clk 0:02:58]}  Bb4 {[%clk 0:02:26]} 5. Nd5 {[%clk 0:02:56]}  Bc5 {[%clk 0:02:25]} 6. c3 {[%clk 0:02:54]}  Nxe4 {[%clk 0:02:12]} 7. d4 {[%clk 0:02:53]}  exd4 {[%clk 0:02:12]} 8. cxd4 {[%clk 0:02:51]}  Be7 {[%clk 0:02:11]} 9. Bd3 {[%clk 0:02:49]}  Nf6 {[%clk 0:02:11]} 10. Nxe7 {[%clk 0:02:48]}  Qxe7+ {[%clk 0:02:09]} 11. Be3 {[%clk 0:02:48]}  d5 {[%clk 0:02:10]} 12. O-O {[%clk 0:02:49]}  h6 {[%clk 0:02:06]} 13. Rc1 {[%clk 0:02:47]}  O-O {[%clk 0:02:06]} 14. Re1 {[%clk 0:02:43]}  Ne4 {[%clk 0:02:05]} 15. Bf4 {[%clk 0:02:41]}  Bf5 {[%clk 0:01:58]} 16. Bb5 {[%clk 0:02:34]}  Qb4 {[%clk 0:01:56]} 17. Bxc6 {[%clk 0:02:28]}  bxc6 {[%clk 0:01:51]} 18. Re2 {[%clk 0:02:22]}  c5 {[%clk 0:01:29]} 19. dxc5 {[%clk 0:02:22]}  c6 {[%clk 0:00:58]} 20. a3 {[%clk 0:02:21]}  Qb7 {[%clk 0:00:55]} 21. Nd4 {[%clk 0:02:20]}  Bg6 {[%clk 0:00:55]} 22. f3 {[%clk 0:02:21]}  Nf6 {[%clk 0:00:55]} 23. Qd2 {[%clk 0:02:20]}  Rfe8 {[%clk 0:00:55]} 24. b4 {[%clk 0:02:19]}  Nd7 {[%clk 0:00:52]} 25. b5 {[%clk 0:02:18]}  Rxe2 {[%clk 0:00:49]} 26. Qxe2 {[%clk 0:02:19]}  cxb5 {[%clk 0:00:45]} 27. c6 {[%clk 0:02:03]}  Qb6 {[%clk 0:00:46]} 28. cxd7 {[%clk 0:02:03]}  Qxd4+ {[%clk 0:00:39]} 29. Be3 {[%clk 0:02:03]}  Qc4 {[%clk 0:00:30]} 30. Rxc4 {[%clk 0:02:03]}  bxc4 {[%clk 0:00:30]} 31. Bxa7 {[%clk 0:01:53]} 1-0


[Site "https://www.chess.com"]

[Event "Titled Tuesday Blitz February 21 Late 2023"]
[White "Bikuzhin, Maksim"]
[Black "Averjanov, Alexey"]
[WhiteFideId "24128015"]
[BlackFideId "14109867"]
[WhiteElo "2279"]
[BlackElo "2399"]
[Result "1/2-1/2"]
[Round "08"]
[TimeControl "180+2"]
[Date "2023.02.21"]
[WhiteClock "0:00:42"]
[BlackClock "0:00:35"]

1. e4 {[%clk 0:03:00]}  c6 {[%clk 0:02:59]} 2. d4 {[%clk 0:03:00]}  d5 {[%clk 0:02:58]} 3. e5 {[%clk 0:03:00]}  Bf5 {[%clk 0:02:58]} 4. h4 {[%clk 0:03:00]}  h5 {[%clk 0:02:57]} 5. c4 {[%clk 0:03:00]}  e6 {[%clk 0:02:56]} 6. Nc3 {[%clk 0:02:58]}  dxc4 {[%clk 0:02:54]} 7. Bxc4 {[%clk 0:02:57]}  Nd7 {[%clk 0:02:53]} 8. Nge2 {[%clk 0:02:56]}  Nb6 {[%clk 0:02:52]} 9. Bb3 {[%clk 0:02:56]}  Ne7 {[%clk 0:02:50]} 10. Bg5 {[%clk 0:02:53]}  Qd7 {[%clk 0:02:46]} 11. O-O {[%clk 0:02:50]}  Ned5 {[%clk 0:02:45]} 12. Ng3 {[%clk 0:02:46]}  Bg6 {[%clk 0:02:44]} 13. Nce4 {[%clk 0:02:45]}  Be7 {[%clk 0:02:37]} 14. Bxe7 {[%clk 0:02:39]}  Qxe7 {[%clk 0:02:37]} 15. Nd6+ {[%clk 0:02:39]}  Kf8 {[%clk 0:02:36]} 16. f4 {[%clk 0:02:32]}  Ne3 {[%clk 0:02:31]} 17. Qd2 {[%clk 0:02:32]}  Nxf1 {[%clk 0:02:28]} 18. Rxf1 {[%clk 0:02:33]}  Nd5 {[%clk 0:02:14]} 19. f5 {[%clk 0:02:30]}  exf5 {[%clk 0:02:14]} 20. Ngxf5 {[%clk 0:02:28]}  Qe6 {[%clk 0:02:14]} 21. Rf3 {[%clk 0:02:15]}  Kg8 {[%clk 0:02:09]} 22. Qg5 {[%clk 0:02:12]}  Rf8 {[%clk 0:02:01]} 23. Kh2 {[%clk 0:02:06]}  a5 {[%clk 0:01:45]} 24. Rg3 {[%clk 0:01:57]}  Kh7 {[%clk 0:01:35]} 25. Bd1 {[%clk 0:01:53]}  Kg8 {[%clk 0:01:32]} 26. Bf3 {[%clk 0:01:50]}  Rh7 {[%clk 0:01:28]} 27. Be4 {[%clk 0:01:38]}  Bxf5 {[%clk 0:01:25]} 28. Bxf5 {[%clk 0:01:37]}  Qh6 {[%clk 0:01:23]} 29. Bxh7+ {[%clk 0:01:37]}  Qxh7 {[%clk 0:01:22]} 30. Nf5 {[%clk 0:01:34]}  g6 {[%clk 0:01:18]} 31. Nd6 {[%clk 0:01:28]}  Qg7 {[%clk 0:01:13]} 32. Nxb7 {[%clk 0:01:25]}  Kh7 {[%clk 0:01:08]} 33. Nc5 {[%clk 0:01:15]}  f6 {[%clk 0:01:06]} 34. Qd2 {[%clk 0:01:12]}  Qe7 {[%clk 0:01:02]} 35. Ne4 {[%clk 0:01:08]}  fxe5 {[%clk 0:00:59]} 36. Ng5+ {[%clk 0:01:08]}  Kg7 {[%clk 0:00:58]} 37. dxe5 {[%clk 0:01:03]}  Qxe5 {[%clk 0:00:59]} 38. Qxa5 {[%clk 0:01:03]}  Rf4 {[%clk 0:00:53]} 39. Qa7+ {[%clk 0:00:55]}  Ne7 {[%clk 0:00:53]} 40. Nf3 {[%clk 0:00:51]}  Qd6 {[%clk 0:00:50]} 41. Qe3 {[%clk 0:00:48]}  Nf5 {[%clk 0:00:46]} 42. Qc3+ {[%clk 0:00:48]}  Kg8 {[%clk 0:00:43]} 43. Qb3+ {[%clk 0:00:48]}  Kg7 {[%clk 0:00:41]} 44. Qc3+ {[%clk 0:00:48]}  Kg8 {[%clk 0:00:41]} 45. Qb3+ {[%clk 0:00:47]}  Kh8 {[%clk 0:00:38]} 46. Qc3+ {[%clk 0:00:42]}  Kg8 {[%clk 0:00:35]} 1/2-1/2


[Site "https://www.chess.com"]

[Event "Titled Tuesday Blitz February 21 Late 2023"]
[White "Bryakin, Mikhail"]
[Black "Manelyuk, Daniil"]
[WhiteFideId "4165314"]
[BlackFideId "44173920"]
[WhiteElo "2455"]
[BlackElo "2302"]
[Result "1-0"]
[Round "08"]
[TimeControl "180+2"]
[Date "2023.02.21"]
[WhiteClock "0:01:30"]
[BlackClock "0:00:31"]

1. e4 {[%clk 0:03:00]}  c6 {[%clk 0:02:58]} 2. d3 {[%clk 0:02:55]}  d5 {[%clk 0:02:56]} 3. Nf3 {[%clk 0:02:55]}  Bg4 {[%clk 0:02:55]} 4. h3 {[%clk 0:02:53]}  Bxf3 {[%clk 0:02:54]} 5. Qxf3 {[%clk 0:02:53]}  e6 {[%clk 0:02:53]} 6. g3 {[%clk 0:02:53]}  Nf6 {[%clk 0:02:53]} 7. Bg2 {[%clk 0:02:54]}  Be7 {[%clk 0:02:54]} 8. O-O {[%clk 0:02:54]}  O-O {[%clk 0:02:54]} 9. Nd2 {[%clk 0:02:50]}  Nbd7 {[%clk 0:02:54]} 10. b3 {[%clk 0:02:45]}  Bb4 {[%clk 0:02:49]} 11. Qe2 {[%clk 0:02:44]}  Bc3 {[%clk 0:02:47]} 12. Rb1 {[%clk 0:02:45]}  Qa5 {[%clk 0:02:44]} 13. a3 {[%clk 0:02:44]}  c5 {[%clk 0:02:39]} 14. Kh2 {[%clk 0:02:42]}  Rfe8 {[%clk 0:02:36]} 15. f4 {[%clk 0:02:41]}  e5 {[%clk 0:02:33]} 16. f5 {[%clk 0:02:37]}  dxe4 {[%clk 0:02:22]} 17. Nxe4 {[%clk 0:02:27]}  Nxe4 {[%clk 0:02:18]} 18. Bxe4 {[%clk 0:02:27]}  Rab8 {[%clk 0:02:09]} 19. f6 {[%clk 0:02:22]}  g6 {[%clk 0:01:44]} 20. Qg4 {[%clk 0:02:12]}  Re6 {[%clk 0:01:30]} 21. Bg5 {[%clk 0:02:06]}  Qxa3 {[%clk 0:01:16]} 22. Bd5 {[%clk 0:01:45]}  Rd6 {[%clk 0:01:10]} 23. Qc4 {[%clk 0:01:45]}  Rf8 {[%clk 0:00:46]} 24. Bh6 {[%clk 0:01:38]}  Nb6 {[%clk 0:00:46]} 25. Qxc3 {[%clk 0:01:29]}  Nxd5 {[%clk 0:00:38]} 26. Qxe5 {[%clk 0:01:30]}  Rfd8 {[%clk 0:00:37]} 27. Rbe1 {[%clk 0:01:30]}  Re6 {[%clk 0:00:31]} 28. Qxe6 {[%clk 0:01:30]} 1-0


[Site "https://www.chess.com"]

[Event "Titled Tuesday Blitz February 21 Late 2023"]
[White "Fiorito, Joaquin"]
[Black "Quispe Arteaga, Gabriel"]
[WhiteFideId "180173"]
[BlackFideId "32059809"]
[WhiteElo "2405"]
[BlackElo "2381"]
[Result "0-1"]
[Round "08"]
[TimeControl "180+2"]
[Date "2023.02.21"]
[WhiteClock "0:00:03"]
[BlackClock "0:00:18"]

1. d4 {[%clk 0:03:00]}  Nf6 {[%clk 0:03:00]} 2. Nc3 {[%clk 0:03:01]}  d5 {[%clk 0:02:59]} 3. Bf4 {[%clk 0:03:02]}  a6 {[%clk 0:02:56]} 4. e3 {[%clk 0:03:02]}  e6 {[%clk 0:02:56]} 5. g4 {[%clk 0:03:02]}  h6 {[%clk 0:02:56]} 6. h4 {[%clk 0:03:02]}  Bd6 {[%clk 0:02:56]} 7. Qf3 {[%clk 0:03:02]}  Nc6 {[%clk 0:02:56]} 8. Nge2 {[%clk 0:02:54]}  e5 {[%clk 0:02:55]} 9. dxe5 {[%clk 0:02:52]}  Nxe5 {[%clk 0:02:56]} 10. Qg3 {[%clk 0:02:29]}  Qe7 {[%clk 0:02:22]} 11. f3 {[%clk 0:02:02]}  Nc4 {[%clk 0:02:06]} 12. O-O-O {[%clk 0:01:53]}  Ba3 {[%clk 0:01:35]} 13. Rxd5 {[%clk 0:00:14]}  Bxb2+ {[%clk 0:01:17]} 14. Kd1 {[%clk 0:00:13]}  Nxd5 {[%clk 0:01:13]} 15. Nxd5 {[%clk 0:00:14]}  Qd7 {[%clk 0:01:14]} 16. Ke1 {[%clk 0:00:15]}  Qxd5 {[%clk 0:01:13]} 17. e4 {[%clk 0:00:12]}  Qc6 {[%clk 0:01:11]} 18. Bh3 {[%clk 0:00:09]}  Be6 {[%clk 0:01:10]} 19. Kf2 {[%clk 0:00:08]}  O-O-O {[%clk 0:01:02]} 20. Rb1 {[%clk 0:00:08]}  Ba3 {[%clk 0:00:58]} 21. Kg2 {[%clk 0:00:07]}  Bd6 {[%clk 0:00:56]} 22. e5 {[%clk 0:00:06]}  Bc5 {[%clk 0:00:55]} 23. Kh2 {[%clk 0:00:06]}  Be3 {[%clk 0:00:48]} 24. Bg2 {[%clk 0:00:05]}  Bxf4 {[%clk 0:00:48]} 25. Nxf4 {[%clk 0:00:06]}  Ne3 {[%clk 0:00:48]} 26. Bh1 {[%clk 0:00:05]}  Rd2+ {[%clk 0:00:47]} 27. Kh3 {[%clk 0:00:06]}  g5 {[%clk 0:00:40]} 28. Nh5 {[%clk 0:00:03]}  Qxc2 {[%clk 0:00:31]} 29. Re1 {[%clk 0:00:03]}  Rd3 {[%clk 0:00:25]} 30. hxg5 {[%clk 0:00:01]}  Nxg4 {[%clk 0:00:25]} 31. Kh4 {[%clk 0:00:01]}  hxg5+ {[%clk 0:00:24]} 32. Kxg5 {[%clk 0:00:02]}  Rg8+ {[%clk 0:00:23]} 33. Kh4 {[%clk 0:00:03]}  Qd2 {[%clk 0:00:18]} 34. Re4 {[%clk 0:00:02]}  Qg5+ {[%clk 0:00:18]} 35. Kh3 {[%clk 0:00:02]}  Qxh5+ {[%clk 0:00:18]} 36. Qh4 {[%clk 0:00:02]}  Qxh4+ {[%clk 0:00:18]} 37. Kxh4 {[%clk 0:00:03]}  Nf2 {[%clk 0:00:18]} 38. Rg4 {[%clk 0:00:03]}  Nxg4 {[%clk 0:00:18]} 0-1


[Site "https://www.chess.com"]

[Event "Titled Tuesday Blitz February 21 Late 2023"]
[White "Nasuta, Grzegorz"]
[Black "Chor, Kevin"]
[WhiteFideId "1141686"]
[BlackFideId "2090740"]
[WhiteElo "2552"]
[BlackElo "1944"]
[Result "1-0"]
[Round "08"]
[TimeControl "180+2"]
[Date "2023.02.21"]
[WhiteClock "0:00:07"]
[BlackClock "0:00:09"]

1. e4 {[%clk 0:02:57]}  c5 {[%clk 0:02:59]} 2. Nf3 {[%clk 0:02:57]}  Nc6 {[%clk 0:02:58]} 3. Bb5 {[%clk 0:02:57]}  d6 {[%clk 0:02:59]} 4. O-O {[%clk 0:02:56]}  Bd7 {[%clk 0:02:59]} 5. Re1 {[%clk 0:02:53]}  Nf6 {[%clk 0:02:55]} 6. c3 {[%clk 0:02:53]}  a6 {[%clk 0:02:46]} 7. Bf1 {[%clk 0:02:52]}  g5 {[%clk 0:02:20]} 8. Nxg5 {[%clk 0:02:48]}  Rg8 {[%clk 0:02:19]} 9. d4 {[%clk 0:02:41]}  cxd4 {[%clk 0:02:12]} 10. cxd4 {[%clk 0:02:40]}  h6 {[%clk 0:02:12]} 11. Nf3 {[%clk 0:02:40]}  Bg4 {[%clk 0:02:11]} 12. Nc3 {[%clk 0:02:28]}  Bxf3 {[%clk 0:01:57]} 13. Qxf3 {[%clk 0:02:29]}  Nxd4 {[%clk 0:01:57]} 14. Qd3 {[%clk 0:02:29]}  Ne6 {[%clk 0:01:50]} 15. Be3 {[%clk 0:02:20]}  Nc5 {[%clk 0:01:43]} 16. Bxc5 {[%clk 0:01:55]}  dxc5 {[%clk 0:01:43]} 17. Qe3 {[%clk 0:01:52]}  e6 {[%clk 0:01:26]} 18. Rad1 {[%clk 0:01:50]}  Qc7 {[%clk 0:01:26]} 19. e5 {[%clk 0:01:49]}  Nd7 {[%clk 0:01:20]} 20. f4 {[%clk 0:01:34]}  O-O-O {[%clk 0:01:19]} 21. Ne4 {[%clk 0:01:30]}  Kb8 {[%clk 0:01:12]} 22. Rd2 {[%clk 0:01:21]}  Be7 {[%clk 0:01:01]} 23. Red1 {[%clk 0:01:20]}  Nb6 {[%clk 0:00:54]} 24. Nd6 {[%clk 0:01:18]}  Nd5 {[%clk 0:00:49]} 25. Qf3 {[%clk 0:01:06]}  Bxd6 {[%clk 0:00:47]} 26. exd6 {[%clk 0:01:07]}  Qxd6 {[%clk 0:00:38]} 27. Bc4 {[%clk 0:01:07]}  Qb6 {[%clk 0:00:26]} 28. f5 {[%clk 0:00:46]}  Nb4 {[%clk 0:00:24]} 29. fxe6 {[%clk 0:00:42]}  Rxd2 {[%clk 0:00:21]} 30. Rxd2 {[%clk 0:00:43]}  fxe6 {[%clk 0:00:21]} 31. Qf7 {[%clk 0:00:41]}  Rd8 {[%clk 0:00:20]} 32. Qxe6 {[%clk 0:00:36]}  Qc7 {[%clk 0:00:13]} 33. Qxh6 {[%clk 0:00:31]}  Re8 {[%clk 0:00:12]} 34. Qd6 {[%clk 0:00:28]}  Qxd6 {[%clk 0:00:07]} 35. Rxd6 {[%clk 0:00:29]}  Re1+ {[%clk 0:00:07]} 36. Kf2 {[%clk 0:00:29]}  Rb1 {[%clk 0:00:08]} 37. Rd2 {[%clk 0:00:29]}  b5 {[%clk 0:00:08]} 38. Bg8 {[%clk 0:00:26]}  c4 {[%clk 0:00:09]} 39. h4 {[%clk 0:00:23]}  Nd3+ {[%clk 0:00:08]} 40. Ke3 {[%clk 0:00:13]}  Nxb2 {[%clk 0:00:07]} 41. Bh7 {[%clk 0:00:11]}  c3 {[%clk 0:00:06]} 42. Bxb1 {[%clk 0:00:11]}  Nc4+ {[%clk 0:00:07]} 43. Ke2 {[%clk 0:00:06]}  cxd2 {[%clk 0:00:07]} 44. Bd3 {[%clk 0:00:06]}  Ne5 {[%clk 0:00:05]} 45. Kxd2 {[%clk 0:00:06]}  Kc7 {[%clk 0:00:06]} 46. h5 {[%clk 0:00:05]}  Ng4 {[%clk 0:00:06]} 47. Bf5 {[%clk 0:00:03]}  Nh6 {[%clk 0:00:05]} 48. Bh3 {[%clk 0:00:02]}  Kd6 {[%clk 0:00:06]} 49. Ke3 {[%clk 0:00:02]}  Ke5 {[%clk 0:00:07]} 50. Bc8 {[%clk 0:00:02]}  Nf7 {[%clk 0:00:08]} 51. Bxa6 {[%clk 0:00:02]}  b4 {[%clk 0:00:07]} 52. Bc4 {[%clk 0:00:02]}  Nd6 {[%clk 0:00:08]} 53. Bd3 {[%clk 0:00:02]}  Nb7 {[%clk 0:00:07]} 54. h6 {[%clk 0:00:02]}  Kf6 {[%clk 0:00:08]} 55. h7 {[%clk 0:00:03]}  Kg7 {[%clk 0:00:08]} 56. g4 {[%clk 0:00:04]}  Nc5 {[%clk 0:00:08]} 57. g5 {[%clk 0:00:05]}  Ne6 {[%clk 0:00:08]} 58. g6 {[%clk 0:00:05]}  Nc5 {[%clk 0:00:08]} 59. Kd4 {[%clk 0:00:05]}  b3 {[%clk 0:00:09]} 60. axb3 {[%clk 0:00:05]}  Nxb3+ {[%clk 0:00:09]} 61. Kd5 {[%clk 0:00:05]}  Nd2 {[%clk 0:00:09]} 62. Be4 {[%clk 0:00:05]}  Nf1 {[%clk 0:00:09]} 63. Ke6 {[%clk 0:00:05]}  Ng3 {[%clk 0:00:09]} 64. Bf3 {[%clk 0:00:04]}  Nf1 {[%clk 0:00:08]} 65. h8=Q+ {[%clk 0:00:04]}  Kxh8 {[%clk 0:00:08]} 66. Kf7 {[%clk 0:00:04]}  Ne3 {[%clk 0:00:08]} 67. g7+ {[%clk 0:00:05]}  Kh7 {[%clk 0:00:09]} 68. g8=Q+ {[%clk 0:00:06]}  Kh6 {[%clk 0:00:09]} 69. Qg6# {[%clk 0:00:07]} 1-0


[Site "https://www.chess.com"]

[Event "Titled Tuesday Blitz February 21 Late 2023"]
[White "EREBUNI91"]
[Black "Manukyan, Sargis V."]
[BlackFideId "13303465"]
[WhiteElo "2753"]
[BlackElo "2253"]
[Result "1-0"]
[Round "08"]
[TimeControl "180+2"]
[Date "2023.02.21"]
[WhiteClock "0:01:14"]
[BlackClock "0:02:09"]

1. e4 {[%clk 0:03:00]}  c5 {[%clk 0:02:55]} 2. Nc3 {[%clk 0:03:00]}  Nc6 {[%clk 0:02:55]} 3. Bb5 {[%clk 0:02:59]}  g6 {[%clk 0:02:55]} 4. Bxc6 {[%clk 0:02:58]}  dxc6 {[%clk 0:02:54]} 5. d3 {[%clk 0:02:58]}  Bg7 {[%clk 0:02:52]} 6. Nge2 {[%clk 0:02:57]}  e5 {[%clk 0:02:50]} 7. O-O {[%clk 0:02:57]}  Nf6 {[%clk 0:02:50]} 8. Be3 {[%clk 0:02:52]}  b6 {[%clk 0:02:49]} 9. Qc1 {[%clk 0:02:52]}  h6 {[%clk 0:02:48]} 10. h3 {[%clk 0:02:37]}  Nd7 {[%clk 0:02:48]} 11. f4 {[%clk 0:02:33]}  exf4 {[%clk 0:02:45]} 12. Bxf4 {[%clk 0:02:18]}  Nf8 {[%clk 0:02:46]} 13. e5 {[%clk 0:02:11]}  Bf5 {[%clk 0:02:38]} 14. Ng3 {[%clk 0:02:03]}  Be6 {[%clk 0:02:30]} 15. Nce4 {[%clk 0:01:58]}  Qd4+ {[%clk 0:02:26]} 16. Kh1 {[%clk 0:01:57]}  O-O-O {[%clk 0:02:27]} 17. Nd6+ {[%clk 0:01:36]}  Kb8 {[%clk 0:02:26]} 18. Nxf7 {[%clk 0:01:24]}  g5 {[%clk 0:02:11]} 19. Nxd8 {[%clk 0:01:20]}  gxf4 {[%clk 0:02:09]} 20. Nxc6+ {[%clk 0:01:14]} 1-0


[Site "https://www.chess.com"]

[Event "Titled Tuesday Blitz February 21 Late 2023"]
[White "Pakleza, Zbigniew"]
[Black "Sadovsky, Artem"]
[WhiteFideId "1119290"]
[BlackFideId "4155840"]
[WhiteElo "2494"]
[BlackElo "2276"]
[Result "0-1"]
[Round "08"]
[TimeControl "180+2"]
[Date "2023.02.21"]
[WhiteClock "0:00:02"]
[BlackClock "0:00:29"]

1. d4 {[%clk 0:03:00]}  g6 {[%clk 0:02:35]} 2. Nf3 {[%clk 0:03:00]}  Bg7 {[%clk 0:02:36]} 3. Bf4 {[%clk 0:03:01]}  d6 {[%clk 0:02:36]} 4. e3 {[%clk 0:03:02]}  Nd7 {[%clk 0:02:37]} 5. h3 {[%clk 0:03:02]}  Ngf6 {[%clk 0:02:37]} 6. Be2 {[%clk 0:03:02]}  O-O {[%clk 0:02:38]} 7. O-O {[%clk 0:03:00]}  c5 {[%clk 0:02:37]} 8. c3 {[%clk 0:03:01]}  b6 {[%clk 0:02:36]} 9. a4 {[%clk 0:03:01]}  a6 {[%clk 0:02:34]} 10. Nbd2 {[%clk 0:03:02]}  Bb7 {[%clk 0:02:31]} 11. Bh2 {[%clk 0:03:02]}  Qc7 {[%clk 0:02:31]} 12. Qb3 {[%clk 0:02:58]}  Rad8 {[%clk 0:02:30]} 13. Bd3 {[%clk 0:02:49]}  Qc8 {[%clk 0:02:30]} 14. e4 {[%clk 0:02:47]}  cxd4 {[%clk 0:02:29]} 15. cxd4 {[%clk 0:02:45]}  Qa8 {[%clk 0:02:30]} 16. Rfe1 {[%clk 0:02:41]}  e5 {[%clk 0:02:28]} 17. Qa3 {[%clk 0:02:34]}  exd4 {[%clk 0:02:25]} 18. Bxd6 {[%clk 0:02:31]}  Rfe8 {[%clk 0:02:24]} 19. e5 {[%clk 0:02:22]}  Nd5 {[%clk 0:02:18]} 20. Rac1 {[%clk 0:01:43]}  Nf4 {[%clk 0:02:15]} 21. Be4 {[%clk 0:01:40]}  Bxe4 {[%clk 0:02:03]} 22. Rxe4 {[%clk 0:01:30]}  Ne6 {[%clk 0:01:36]} 23. b4 {[%clk 0:01:14]}  Qd5 {[%clk 0:01:28]} 24. Qd3 {[%clk 0:01:02]}  b5 {[%clk 0:01:27]} 25. a5 {[%clk 0:00:52]}  f5 {[%clk 0:01:12]} 26. Ree1 {[%clk 0:00:17]}  Nf4 {[%clk 0:01:03]} 27. Qxd4 {[%clk 0:00:17]}  Qxd4 {[%clk 0:01:03]} 28. Nxd4 {[%clk 0:00:18]}  Bxe5 {[%clk 0:00:51]} 29. Bxe5 {[%clk 0:00:06]}  Nxe5 {[%clk 0:00:52]} 30. N2b3 {[%clk 0:00:05]}  Nfd3 {[%clk 0:00:51]} 31. Kh2 {[%clk 0:00:02]}  Nxe1 {[%clk 0:00:43]} 32. Rxe1 {[%clk 0:00:03]}  Nc4 {[%clk 0:00:33]} 33. Rc1 {[%clk 0:00:02]}  Re4 {[%clk 0:00:30]} 34. Nc6 {[%clk 0:00:02]}  Rd6 {[%clk 0:00:30]} 35. Nb8 {[%clk 0:00:02]}  Re8 {[%clk 0:00:30]} 36. Nc5 {[%clk 0:00:02]}  Rxb8 {[%clk 0:00:29]} 0-1


[Site "https://www.chess.com"]

[Event "Titled Tuesday Blitz February 21 Late 2023"]
[White "Sztokbant, Bernardo Vainzoff"]
[Black "Koziorowicz, Michal"]
[WhiteFideId "2115956"]
[BlackFideId "21809194"]
[WhiteElo "2213"]
[BlackElo "2307"]
[Result "1-0"]
[Round "08"]
[TimeControl "180+2"]
[Date "2023.02.21"]
[WhiteClock "0:00:22"]
[BlackClock "0:00:19"]

1. d4 {[%clk 0:03:00]}  b5 {[%clk 0:02:57]} 2. c4 {[%clk 0:03:00]}  bxc4 {[%clk 0:02:57]} 3. e4 {[%clk 0:02:59]}  Bb7 {[%clk 0:02:57]} 4. Nc3 {[%clk 0:02:58]}  e5 {[%clk 0:02:53]} 5. dxe5 {[%clk 0:02:54]}  Nc6 {[%clk 0:02:52]} 6. Nf3 {[%clk 0:02:52]}  Nge7 {[%clk 0:02:48]} 7. Bxc4 {[%clk 0:02:51]}  Ng6 {[%clk 0:02:32]} 8. Bg5 {[%clk 0:02:34]}  Be7 {[%clk 0:02:24]} 9. Bxe7 {[%clk 0:02:02]}  Qxe7 {[%clk 0:02:25]} 10. Nd5 {[%clk 0:01:58]}  Qd8 {[%clk 0:02:25]} 11. Rc1 {[%clk 0:01:46]}  Ngxe5 {[%clk 0:02:07]} 12. Nxe5 {[%clk 0:01:46]}  Nxe5 {[%clk 0:02:06]} 13. Nxc7+ {[%clk 0:01:39]}  Qxc7 {[%clk 0:01:46]} 14. Bxf7+ {[%clk 0:01:38]}  Kd8 {[%clk 0:01:46]} 15. Rxc7 {[%clk 0:01:39]}  Kxc7 {[%clk 0:01:47]} 16. Bd5 {[%clk 0:01:27]}  Rab8 {[%clk 0:01:19]} 17. O-O {[%clk 0:01:24]}  Bxd5 {[%clk 0:01:15]} 18. Qxd5 {[%clk 0:01:23]}  Nc6 {[%clk 0:01:14]} 19. Rd1 {[%clk 0:01:20]}  Rhd8 {[%clk 0:01:12]} 20. b3 {[%clk 0:01:18]}  Rb4 {[%clk 0:01:05]} 21. Qd6+ {[%clk 0:01:16]}  Kb7 {[%clk 0:01:04]} 22. f3 {[%clk 0:01:03]}  a6 {[%clk 0:01:00]} 23. Rc1 {[%clk 0:01:02]}  Rd4 {[%clk 0:00:56]} 24. Qg3 {[%clk 0:00:58]}  g6 {[%clk 0:00:56]} 25. h4 {[%clk 0:00:56]}  Re8 {[%clk 0:00:50]} 26. Qg5 {[%clk 0:00:50]}  Re5 {[%clk 0:00:43]} 27. Qh6 {[%clk 0:00:49]}  Re7 {[%clk 0:00:42]} 28. Qf8 {[%clk 0:00:49]}  Re6 {[%clk 0:00:38]} 29. Qg7 {[%clk 0:00:44]}  Re7 {[%clk 0:00:37]} 30. Qg8 {[%clk 0:00:42]}  a5 {[%clk 0:00:33]} 31. a3 {[%clk 0:00:41]}  Rd2 {[%clk 0:00:27]} 32. Qf8 {[%clk 0:00:38]}  Re5 {[%clk 0:00:25]} 33. b4 {[%clk 0:00:34]}  axb4 {[%clk 0:00:25]} 34. axb4 {[%clk 0:00:35]}  Rb2 {[%clk 0:00:26]} 35. Qd6 {[%clk 0:00:32]}  Re7 {[%clk 0:00:24]} 36. Rxc6 {[%clk 0:00:30]}  dxc6 {[%clk 0:00:24]} 37. Qxe7+ {[%clk 0:00:30]}  Ka6 {[%clk 0:00:23]} 38. e5 {[%clk 0:00:29]}  Kb5 {[%clk 0:00:22]} 39. Qc5+ {[%clk 0:00:28]}  Ka4 {[%clk 0:00:21]} 40. e6 {[%clk 0:00:28]}  Rxb4 {[%clk 0:00:21]} 41. e7 {[%clk 0:00:27]}  Rb1+ {[%clk 0:00:20]} 42. Kh2 {[%clk 0:00:28]}  Re1 {[%clk 0:00:19]} 43. Qxc6+ {[%clk 0:00:25]}  Kb3 {[%clk 0:00:20]} 44. Qb5+ {[%clk 0:00:23]}  Kc2 {[%clk 0:00:19]} 45. Qc4+ {[%clk 0:00:22]}  Kd1 {[%clk 0:00:19]} 46. Qd3+ {[%clk 0:00:21]}  Kc1 {[%clk 0:00:20]} 47. Qc3+ {[%clk 0:00:21]}  Kd1 {[%clk 0:00:19]} 48. Qxe1+ {[%clk 0:00:22]} 1-0


[Site "https://www.chess.com"]